fUSD/lending_fUSD_20240902
["ID","MTS","AMOUNT","RATE_DAILY","PERIOD"]
[336908145,1725238292577,-853.11,0.00022488,2]
[336908146,1725238292587,-1272.16,0.00022488,2]
[336908147,1725238292597,-500.0,0.00022488,2]
[336908148,1725238292606,-500.0,0.00022488,2]
[336908149,1725238292617,-500.0,0.00022488,2]
[336908150,1725238292628,-500.0,0.00022488,2]
[336908151,1725238292801,-976.66,0.00022488,2]
[336908152,1725238292815,-479.56042876,0.00022488,2]
[336908153,1725238292824,-976.66,0.00022488,2]
[336908154,1725238292833,-976.66,0.00022488,2]
[336908155,1725238292843,-976.66,0.00022488,2]
[336908156,1725238292852,-976.66,0.00022488,2]
[336908157,1725238292861,-500.0,0.00022488,2]
[336908158,1725238292870,-500.0,0.00022488,2]
[336908159,1725238292879,-500.0,0.00022488,2]
[336908160,1725238292888,-500.0,0.00022488,2]
[336908161,1725238292898,-500.0,0.00022488,2]
[336908162,1725238292907,-500.0,0.00022488,2]
[336908163,1725238292917,-500.0,0.00022488,2]
[336908164,1725238292927,-500.0,0.00022488,2]
[336908165,1725238292938,-500.0,0.00022488,2]
[336908166,1725238292948,-570.94962586,0.00022488,2]
[336908167,1725238292959,-4285.82,0.00022488,2]
[336908168,1725238292969,-4285.82,0.00022488,2]
[336908169,1725238292979,-4285.82,0.00022488,2]
[336908170,1725238292987,-4285.82,0.00022488,2]
[336908171,1725238292997,-4285.82,0.00022488,2]
[336908172,1725238293006,-871.24,0.00022488,2]
[336908173,1725238293017,-871.24,0.00022488,2]
[336908174,1725238293032,-871.24,0.00022488,2]
[336908175,1725238293041,-500.0,0.00022488,2]
[336908176,1725238293051,-871.24,0.00022488,2]
[336908177,1725238293059,-871.24,0.00022488,2]
[336908178,1725238293069,-500.0,0.00022488,2]
[336908179,1725238293078,-408.35494297,0.00022488,2]
[336908180,1725238293087,-500.0,0.00022488,2]
[336908181,1725238293097,-639.05,0.00022488,2]
[336908182,1725238293106,-500.0,0.00022488,2]
[336908183,1725238293115,-639.05,0.00022488,2]
[336908184,1725238293125,-500.0,0.00022488,2]
[336908185,1725238293135,-500.0,0.00022488,2]
[336908186,1725238293144,-639.05,0.00022488,2]
[336908187,1725238293153,-500.0,0.00022488,2]
[336908188,1725238293163,-442.90080515,0.00022488,2]
[336908189,1725238293172,-639.05,0.00022488,2]
[336908190,1725238293182,-500.0,0.00022488,2]
[336908191,1725238293191,-639.05,0.00022488,2]
[336908192,1725238293201,-500.0,0.00022488,2]
[336908193,1725238293210,-500.0,0.00022488,2]
[336908194,1725238293219,-500.0,0.00022488,2]
[336908195,1725238293229,-500.0,0.00022488,2]
[336908196,1725238293238,-500.0,0.00022488,2]
[336908197,1725238293247,-500.0,0.00022488,2]
[336908198,1725238293256,-500.0,0.00022488,2]
[336908199,1725238293265,-500.0,0.00022488,2]
[336908200,1725238293274,-500.0,0.00022488,2]
[336908201,1725238293284,-500.0,0.00022488,2]
[336908202,1725238293293,-500.0,0.00022488,2]
[336908203,1725238293302,-500.0,0.00022488,2]
[336908204,1725238293311,-500.0,0.00022488,2]
[336908205,1725238293320,-500.0,0.00022488,2]
[336908206,1725238293329,-500.0,0.00022488,2]
[336908207,1725238293338,-500.0,0.00022488,2]
[336908208,1725238293347,-500.0,0.00022488,2]
[336908209,1725238293357,-500.0,0.00022488,2]
[336908210,1725238293366,-526.3,0.00022488,2]
[336908211,1725238293375,-526.3,0.00022488,2]
[336908212,1725238293384,-526.3,0.00022488,2]
[336908213,1725238293394,-526.3,0.00022488,2]
[336908214,1725238293403,-526.3,0.00022488,2]
[336908215,1725238293412,-1004.89,0.00022488,2]
[336908216,1725238293422,-1004.89,0.00022488,2]
[336908217,1725238293431,-1004.89,0.00022488,2]
[336908218,1725238293441,-1004.89,0.00022488,2]
[336908219,1725238293450,-710.43,0.00022488,2]
[336908220,1725238293460,-1004.89,0.00022488,2]
[336908221,1725238293469,-500.0,0.00022488,2]
[336908222,1725238293478,-500.0,0.00022488,2]
[336908223,1725238293489,-710.43,0.00022488,2]
[336908224,1725238293498,-500.0,0.00022488,2]
[336908225,1725238293507,-710.43,0.00022488,2]
[336908226,1725238293525,-710.43,0.00022488,2]
[336908227,1725238293535,-500.0,0.00022488,2]
[336908228,1725238293545,-500.0,0.00022488,2]
[336908229,1725238293555,-710.43,0.00022488,2]
[336908230,1725238293565,-1889.45,0.00022488,2]
[336908231,1725238293575,-1889.45,0.00022488,2]
[336908232,1725238293585,-500.0,0.00022488,2]
[336908233,1725238293595,-1889.45,0.00022488,2]
[336908234,1725238293605,-318.08810212,0.00022488,2]
[336908235,1725238293615,-1889.45,0.00022488,2]
[336908236,1725238293628,-1889.45,0.00022488,2]
[336908237,1725238293638,-500.0,0.00022488,2]
[336908238,1725238293648,-500.0,0.00022488,2]
[336908239,1725238293659,-500.0,0.00022488,2]
[336908240,1725238293668,-500.0,0.00022488,2]
[336908241,1725238293678,-500.0,0.00022488,2]
[336908242,1725238293687,-500.0,0.00022488,2]
[336908243,1725238293698,-500.0,0.00022488,2]
[336908244,1725238293707,-766.06,0.00022488,2]
[336908245,1725238293717,-500.0,0.00022488,2]
[336908246,1725238293726,-500.0,0.00022488,2]
[336908247,1725238293736,-766.06,0.00022488,2]
[336908248,1725238293746,-500.0,0.00022488,2]
[336908249,1725238293755,-500.0,0.00022488,2]
[336908250,1725238293765,-766.06,0.00022488,2]
[336908251,1725238293775,-500.0,0.00022488,2]
[336908252,1725238293785,-500.0,0.00022488,2]
[336908253,1725238293794,-766.06,0.00022488,2]
[336908254,1725238293804,-500.0,0.00022488,2]
[336908255,1725238293813,-766.06,0.00022488,2]
[336908256,1725238293823,-500.0,0.00022488,2]
[336908257,1725238293832,-500.0,0.00022488,2]
[336908258,1725238293842,-500.0,0.00022488,2]
[336908259,1725238293851,-500.0,0.00022488,2]
[336908260,1725238293861,-507.01435882,0.00022488,2]
[336908261,1725238293872,-1114.89,0.00022488,2]
[336908262,1725238293882,-1114.89,0.00022488,2]
[336908263,1725238293891,-3779.13,0.00022488,2]
[336908264,1725238293901,-1114.89,0.00022488,2]
[336908265,1725238293911,-3779.13,0.00022488,2]
[336908266,1725238293920,-3779.13,0.00022488,2]
[336908267,1725238293930,-1114.89,0.00022488,2]
[336908268,1725238293939,-3779.13,0.00022488,2]
[336908269,1725238293950,-1114.89,0.00022488,2]
[336908270,1725238293959,-3779.13,0.00022488,2]
[336908271,1725238293969,-500.0,0.00022488,2]
[336908272,1725238293979,-500.0,0.00022488,2]
[336908273,1725238293989,-500.0,0.00022488,2]
[336908274,1725238293999,-500.0,0.00022488,2]
[336908275,1725238294008,-506.60505521,0.00022488,2]
[336908276,1725238294018,-2946.64,0.00022488,2]
[336908277,1725238294028,-2946.64,0.00022488,2]
[336908278,1725238294038,-500.0,0.00022488,2]
[336908279,1725238294047,-2946.64,0.00022488,2]
[336908280,1725238294057,-500.0,0.00022488,2]
[336908281,1725238294066,-2946.64,0.00022488,2]
[336908282,1725238294076,-2946.64,0.00022488,2]
[336908283,1725238294086,-500.0,0.00022488,2]
[336908284,1725238294095,-500.0,0.00022488,2]
[336908285,1725238294105,-488.73665426,0.00022488,2]
[336908286,1725238294114,-500.0,0.00022488,2]
[336908287,1725238294123,-500.0,0.00022488,2]
[336908288,1725238294132,-500.0,0.00022488,2]
[336908289,1725238294142,-500.0,0.00022488,2]
[336908290,1725238294152,-500.0,0.00022488,2]
[336908291,1725238294161,-500.0,0.00022488,2]
[336908292,1725238294170,-500.0,0.00022488,2]
[336908293,1725238294180,-500.0,0.00022488,2]
[336908294,1725238294190,-500.0,0.00022488,2]
[336908295,1725238294199,-515.90839662,0.00022488,2]
[336908296,1725238294209,-578.26,0.00022488,2]
[336908297,1725238294218,-578.26,0.00022488,2]
[336908298,1725238294229,-500.0,0.00022488,2]
[336908299,1725238294239,-667.72,0.00022488,2]
[336908300,1725238294248,-3979.93,0.00022488,2]
[336908301,1725238294258,-578.26,0.00022488,2]
[336908302,1725238294268,-500.0,0.00022488,2]
[336908303,1725238294278,-667.72,0.00022488,2]
[336908304,1725238294287,-3979.93,0.00022488,2]
[336908305,1725238294296,-578.26,0.00022488,2]
[336908306,1725238294307,-500.0,0.00022488,2]
[336908307,1725238294317,-667.72,0.00022488,2]
[336908308,1725238294327,-578.26,0.00022488,2]
[336908309,1725238294336,-500.0,0.00022488,2]
[336908310,1725238294346,-3979.93,0.00022488,2]
[336908311,1725238294356,-667.72,0.00022488,2]
[336908312,1725238294366,-3979.93,0.00022488,2]
[336908313,1725238294376,-667.72,0.00022488,2]
[336908314,1725238294385,-500.0,0.00022488,2]
[336908315,1725238294395,-3979.93,0.00022488,2]
[336908316,1725238294404,-1574.01,0.00022488,2]
[336908317,1725238294414,-1574.01,0.00022488,2]
[336908318,1725238294423,-1574.01,0.00022488,2]
[336908319,1725238294432,-1574.01,0.00022488,2]
[336908320,1725238294442,-1574.01,0.00022488,2]
[336908321,1725238294451,-500.0,0.00022488,2]
[336908322,1725238294461,-500.0,0.00022488,2]
[336908323,1725238294470,-1055.41,0.00022488,2]
[336908324,1725238294480,-1055.41,0.00022488,2]
[336908325,1725238294489,-500.0,0.00022488,2]
[336908326,1725238294498,-1055.41,0.00022488,2]
[336908327,1725238294508,-500.0,0.00022488,2]
[336908328,1725238294519,-500.0,0.00022488,2]
[336908329,1725238294528,-1055.41,0.00022488,2]
[336908330,1725238294537,-1055.41,0.00022488,2]
[336908331,1725238294546,-500.0,0.00022488,2]
[336908332,1725238294556,-500.0,0.00022488,2]
[336908333,1725238294565,-500.0,0.00022488,2]
[336908334,1725238294574,-500.0,0.00022488,2]
[336908335,1725238294583,-500.0,0.00022488,2]
[336908336,1725238294593,-611.99616677,0.00022488,2]
[336908337,1725238294602,-500.0,0.00022488,2]
[336908338,1725238294612,-500.0,0.00022488,2]
[336908339,1725238294624,-500.0,0.00022488,2]
[336908340,1725238294634,-500.0,0.00022488,2]
[336908341,1725238294643,-500.0,0.00022488,2]
[336908342,1725238294653,-500.0,0.00022488,2]
[336908343,1725238294664,-500.0,0.00022488,2]
[336908344,1725238294674,-500.0,0.00022488,2]
[336908345,1725238294683,-500.0,0.00022488,2]
[336908346,1725238294694,-500.0,0.00022488,2]
[336908347,1725238294703,-500.0,0.00022488,2]
[336908348,1725238294712,-157.38581111,0.00022488,2]
[336908349,1725238294721,-500.0,0.00022488,2]
[336908350,1725238294731,-544.05,0.00022488,2]
[336908351,1725238294740,-500.0,0.00022488,2]
[336908352,1725238294750,-544.05,0.00022488,2]
[336908353,1725238294759,-500.0,0.00022488,2]
[336908354,1725238294770,-544.05,0.00022488,2]
[336908355,1725238294780,-500.0,0.00022488,2]
[336908356,1725238294790,-500.0,0.00022488,2]
[336908357,1725238294799,-500.0,0.00022488,2]
[336908358,1725238294808,-544.05,0.00022488,2]
[336908359,1725238294818,-500.0,0.00022488,2]
[336908360,1725238294827,-544.05,0.00022488,2]
[336908361,1725238294836,-500.0,0.00022488,2]
[336908362,1725238294846,-500.0,0.00022488,2]
[336908363,1725238294855,-500.0,0.00022488,2]
[336908364,1725238294864,-1304.06,0.00022488,2]
[336908365,1725238294874,-823.43,0.00022488,2]
[336908366,1725238294884,-1304.06,0.00022488,2]
[336908367,1725238294893,-823.43,0.00022488,2]
[336908368,1725238294902,-1304.06,0.00022488,2]
[336908369,1725238294912,-500.0,0.00022488,2]
[336908370,1725238294921,-823.43,0.00022488,2]
[336908371,1725238294931,-1304.06,0.00022488,2]
[336908372,1725238294940,-500.0,0.00022488,2]
[336908373,1725238294949,-823.43,0.00022488,2]
[336908374,1725238294959,-1304.06,0.00022488,2]
[336908375,1725238294968,-500.0,0.00022488,2]
[336908376,1725238294978,-500.0,0.00022488,2]
[336908377,1725238294987,-500.0,0.00022488,2]
[336908378,1725238294996,-881.58,0.00022488,2]
[336908379,1725238295007,-823.43,0.00022488,2]
[336908380,1725238295018,-626.98632478,0.00022488,2]
[336908381,1725238295027,-334.56128514,0.00022488,2]
[336908382,1725238295036,-881.58,0.00022488,2]
[336908383,1725238295046,-500.0,0.00022488,2]
[336908384,1725238295055,-881.58,0.00022488,2]
[336908385,1725238295064,-932.16,0.00022488,2]
[336908386,1725238295073,-500.0,0.00022488,2]
[336908387,1725238295082,-881.58,0.00022488,2]
[336908388,1725238295091,-932.16,0.00022488,2]
[336908389,1725238295100,-500.0,0.00022488,2]
[336908390,1725238295110,-881.58,0.00022488,2]
[336908391,1725238295119,-500.0,0.00022488,2]
[336908392,1725238295130,-932.16,0.00022488,2]
[336908393,1725238295139,-500.0,0.00022488,2]
[336908394,1725238295148,-251.52623067,0.00022488,2]
[336908395,1725238295157,-932.16,0.00022488,2]
[336908396,1725238295167,-500.0,0.00022488,2]
[336908397,1725238295176,-932.16,0.00022488,2]
[336908398,1725238295186,-795.83,0.00022488,2]
[336908399,1725238295195,-795.83,0.00022488,2]
[336908400,1725238295204,-604.46,0.00022488,2]
[336908401,1725238295213,-795.83,0.00022488,2]
[336908402,1725238295222,-604.46,0.00022488,2]
[336908403,1725238295231,-795.83,0.00022488,2]
[336908404,1725238295240,-604.46,0.00022488,2]
[336908405,1725238295249,-795.83,0.00022488,2]
[336908406,1725238295258,-604.46,0.00022488,2]
[336908407,1725238295268,-604.46,0.00022488,2]
[336908408,1725238295277,-1127.14,0.00022488,2]
[336908409,1725238295286,-1127.14,0.00022488,2]
[336908410,1725238295296,-1127.14,0.00022488,2]
[336908411,1725238295305,-747.14095207,0.00022488,2]
[336908412,1725238296415,-379.99904793,0.00022488,2]
[336908413,1725238296425,-1127.14,0.00022488,2]
[336908414,1725238296434,-500.0,0.00022488,2]
[336908415,1725238296444,-500.0,0.00022488,2]
[336908416,1725238296453,-500.0,0.00022488,2]
[336908417,1725238296463,-947.64,0.00022488,2]
[336908418,1725238296472,-1404.61,0.00022488,2]
[336908419,1725238296481,-947.64,0.00022488,2]
[336908420,1725238296490,-1438.54,0.00022488,2]
[336908421,1725238296500,-500.0,0.00022488,2]
[336908422,1725238296509,-1404.61,0.00022488,2]
[336908423,1725238296525,-947.64,0.00022488,2]
[336908424,1725238296535,-363.25635315,0.00022488,2]
[336908425,1725238296544,-1404.61,0.00022488,2]
[336908426,1725238296554,-1438.54,0.00022488,2]
[336908427,1725238296564,-947.64,0.00022488,2]
[336908428,1725238296574,-947.64,0.00022488,2]
[336908429,1725238296583,-1438.54,0.00022488,2]
[336908430,1725238296593,-1404.61,0.00022488,2]
[336908431,1725238296603,-1438.54,0.00022488,2]
[336908432,1725238296614,-1404.61,0.00022488,2]
[336908433,1725238296627,-1438.54,0.00022488,2]
[336908434,1725238296637,-2168.86,0.00022488,2]
[336908435,1725238296646,-2168.86,0.00022488,2]
[336908436,1725238296656,-2168.86,0.00022488,2]
[336908437,1725238296666,-2168.86,0.00022488,2]
[336908438,1725238296675,-500.0,0.00022488,2]
[336908439,1725238296685,-500.0,0.00022488,2]
[336908440,1725238296695,-500.0,0.00022488,2]
[336908441,1725238296704,-500.0,0.00022488,2]
[336908442,1725238296713,-2168.86,0.00022488,2]
[336908443,1725238296722,-500.0,0.00022488,2]
[336908444,1725238296731,-500.0,0.00022488,2]
[336908445,1725238296741,-500.0,0.00022488,2]
[336908446,1725238296750,-500.0,0.00022488,2]
[336908447,1725238296759,-177.85866051,0.00022488,2]
[336908448,1725238296769,-500.0,0.00022488,2]
[336908449,1725238296778,-500.0,0.00022488,2]
[336908450,1725238296788,-492.56308771,0.00022488,2]
[336908451,1725238296797,-1467.85,0.00022488,2]
[336908452,1725238296807,-1467.85,0.00022488,2]
[336908453,1725238296816,-500.0,0.00022488,2]
[336908454,1725238296826,-1467.85,0.00022488,2]
[336908455,1725238296836,-500.0,0.00022488,2]
[336908456,1725238296846,-1467.85,0.00022488,2]
[336908457,1725238296855,-500.0,0.00022488,2]
[336908458,1725238296865,-500.0,0.00022488,2]
[336908459,1725238296874,-1467.85,0.00022488,2]
[336908460,1725238296884,-500.0,0.00022488,2]
[336908461,1725238296893,-1261.8,0.00022488,2]
[336908462,1725238296902,-1261.8,0.00022488,2]
[336908463,1725238296911,-1261.8,0.00022488,2]
[336908464,1725238296921,-1261.8,0.00022488,2]
[336908465,1725238296931,-500.0,0.00022488,2]
[336908466,1725238296940,-1261.8,0.00022488,2]
[336908467,1725238296949,-500.0,0.00022488,2]
[336908468,1725238296959,-146.40843853,0.00022488,2]
[336908469,1725238296979,-353.59156147,0.00022488,2]
[336908470,1725238296989,-500.0,0.00022488,2]
[336908471,1725238296999,-500.0,0.00022488,2]
[336908472,1725238297008,-637.5,0.00022488,2]
[336908473,1725238297018,-500.0,0.00022488,2]
[336908474,1725238297028,-500.0,0.00022488,2]
[336908475,1725238297037,-283.31635801,0.00022488,2]
[336908476,1725238298007,-212.08644444,0.00022469,2]
[336908477,1725238298017,-500.0,0.00022469,2]
[336908478,1725238298028,-500.0,0.00022469,2]
[336908479,1725238298038,-91.31355556,0.00022487,2]
[336908480,1725238298051,-408.68644444,0.00022487,2]
[336908481,1725238298060,-351.51355556,0.00022487,2]
[336908482,1725238300141,150.0,0.0001,2]
[336908483,1725238300163,92.56,0.0001,2]
[336908484,1725238302323,57.44,0.00011,2]
[336908485,1725238302344,142.56,0.00011,2]
[336908486,1725238304452,7.44,0.00012,2]
[336908487,1725238304474,150.0,0.00012,2]
[336908488,1725238304495,142.56,0.00012,2]
[336908489,1725238315939,51.81929832,0.00012,2]
[336908490,1725238315958,209.14,0.00012,2]
[336908491,1725238315979,39.04070168,0.00012,2]
[336908493,1725238422829,159.14,0.00010959,2]
[336908495,1725238472974,300.0,0.00027,120]
[336908496,1725238515399,195.6,0.00026844,120]
[336908497,1725238528572,300.0,0.000125,2]
[336908503,1725239038382,169.84,0.00024848,120]
[336908505,1725239057971,153.74,0.00010959,2]
[336908508,1725239355106,-475.76,0.000195,2]
[336908509,1725239355133,-855.0,0.00020862,2]
[336908510,1725239355160,-250.0,0.00020863,2]
[336908511,1725239355187,-1885.52,0.00020863,2]
[336908512,1725239355215,-604.24,0.00020875,2]
[336908513,1725239355242,-800.0,0.00020879,2]
[336908514,1725239399083,150.0,0.00012,2]
[336908515,1725239399104,150.0,0.00012,2]
[336908516,1725239405153,-300.0,0.00019725,2]
[336908520,1725239432289,-250.0,0.00020885,2]
[336908521,1725239432299,-1464.72611778,0.00020896,2]
[336908522,1725239432311,-1231.85132041,0.00020896,2]
[336908523,1725239432322,-311.84172578,0.00020896,2]
[336908524,1725239432333,-833.36001832,0.00020896,2]
[336908525,1725239432346,-696.93784984,0.00020896,2]
[336908526,1725239432366,-270.32356311,0.00020896,2]
[336908527,1725239432378,-716.42179217,0.00020896,2]
[336908528,1725239432392,-935.99632994,0.00020896,2]
[336908529,1725239432403,-371.6925449,0.00020896,2]
[336908530,1725239432414,-458.22859527,0.00020896,2]
[336908531,1725239432471,-315.29707946,0.00020896,2]
[336908532,1725239432482,-768.82318234,0.00020896,2]
[336908533,1725239432493,-2585.9584158,0.00020896,2]
[336908534,1725239432504,-332.75527609,0.00020896,2]
[336908535,1725239432515,-577.17401886,0.00020896,2]
[336908536,1725239432526,-1000.5000036,0.00020896,2]
[336908537,1725239432555,-707.07731665,0.00020896,2]
[336908538,1725239432566,-629.99914214,0.00020896,2]
[336908539,1725239432576,-9691.03570754,0.00020896,2]
[336908540,1725239432585,-250.0,0.0002096,2]
[336908541,1725239432595,-167.12,0.00021245,2]
[336908542,1725239432604,-167.12,0.0002126,2]
[336908543,1725239432614,-150.0,0.00021263,2]
[336908544,1725239432622,-167.12,0.00021275,2]
[336908545,1725239432632,-167.12,0.00021291,2]
[336908546,1725239432641,-169.84,0.00021299,2]
[336908547,1725239432650,-167.12,0.00021306,2]
[336908548,1725239432659,-167.12,0.00021321,2]
[336908549,1725239432669,-174.6,0.00021326,2]
[336908550,1725239432678,-167.12,0.00021336,2]
[336908551,1725239432687,-169.97,0.00021345,2]
[336908552,1725239432696,-167.12,0.00021351,2]
[336908554,1725239432705,-200.0,0.0002137,2]
[336908556,1725239432713,-195.6,0.00021475,2]
[336908557,1725239432722,-420.0,0.00021484,2]
[336908558,1725239432959,-1035.29,0.000217,6]
[336908559,1725239432992,-475.76,0.00021764,2]
[336908560,1725239433003,-354.71,0.00021918,2]
[336908561,1725239433012,-150.0,0.00021918,2]
[336908562,1725239433021,-350.0,0.00022,4]
[336908563,1725239433031,-400.0,0.00022,2]
[336908564,1725239433040,-400.0,0.00022,2]
[336908565,1725239433050,-3000.0,0.000222,2]
[336908566,1725239433059,-421.91,0.0002225,2]
[336908567,1725239433068,-13462.0,0.00022256,2]
[336908568,1725239433080,-3732.0,0.00022256,2]
[336908569,1725239433090,-289.0,0.00022256,2]
[336908570,1725239433099,-1144.0,0.00022256,2]
[336908571,1725239433108,-5853.0,0.00022256,2]
[336908572,1725239433118,-1078.0,0.00022256,2]
[336908573,1725239433127,-3000.0,0.0002226,2]
[336908574,1725239433136,-150.0,0.00022263,2]
[336908575,1725239433145,-157.95458,0.00022263,2]
[336908576,1725239433155,-736.5947,0.00022267,2]
[336908577,1725239433164,-537.3437944,0.00022267,2]
[336908578,1725239433176,-10923.01078965,0.00022267,2]
[336908579,1725239438315,-1107.96508129,0.00022267,2]
[336908583,1725239438391,-1275.15327242,0.00022267,2]
[336908584,1725239438402,-300.45999998,0.00022267,2]
[336908585,1725239438414,-300.0,0.00022267,2]
[336908586,1725239438426,-8594.20360626,0.00022267,2]
[336908587,1725239438662,-4700.03040044,0.00022267,2]
[336908588,1725239438676,-1579.66035556,0.00022267,2]
[336908589,1725239438685,-1289.3436,0.00022267,2]
[336908590,1725239438694,-2284.0692,0.00022267,2]
[336908591,1725239438704,-8703.7603,0.00022268,2]
[336908592,1725239438714,-1214.37937346,0.00022269,2]
[336908593,1725239438723,-1214.37937339,0.00022284,2]
[336908594,1725239438733,-1214.37937339,0.00022298,2]
[336908595,1725239438742,-500.0,0.00022308,2]
[336908596,1725239438751,-1214.37937339,0.00022313,2]
[336908597,1725239438761,-1214.37937339,0.00022327,2]
[336908599,1725239438771,-1214.37937339,0.00022342,2]
[336908601,1725239438780,-1214.37937339,0.00022356,2]
[336908602,1725239438789,-421.91,0.00022357,2]
[336908604,1725239438799,-421.91,0.00022357,2]
[336908605,1725239438808,-347.853,0.00022359,2]
[336908606,1725239438818,-174.12842966,0.00022364,2]
[336908607,1725239438827,-693.9613,0.00022367,2]
[336908608,1725239438836,-3043.2129,0.00022367,2]
[336908609,1725239438848,-938.4516,0.00022367,2]
[336908610,1725239438857,-100000.0,0.00022367,2]
[336908612,1725239438867,-500.0,0.00022367,2]
[336908614,1725239438876,-3300.0,0.00022367,2]
[336908616,1725239438885,-1000.0,0.00022368,2]
[336908618,1725239438895,-55982.2504,0.00022368,2]
[336908620,1725239438905,-182.49329433,0.00022369,2]
[336908622,1725239438914,-174.10875149,0.00022369,2]
[336908624,1725239438924,-7500.0,0.00022369,2]
[336908626,1725239438933,-1214.37937339,0.00022371,2]
[336908628,1725239438943,-182.49329433,0.00022379,2]
[336908630,1725239438952,-1214.37937339,0.00022385,2]
[336908632,1725239438961,-182.49329433,0.00022388,2]
[336908634,1725239438971,-229.876,0.00022397,2]
[336908636,1725239438980,-150.0,0.00022397,2]
[336908638,1725239438992,-150.139,0.00022397,2]
[336908640,1725239439002,-150.0,0.00022397,2]
[336908642,1725239439011,-623.0,0.00022397,2]
[336908644,1725239439020,-1259.0,0.00022397,2]
[336908646,1725239439030,-1545.0,0.00022397,2]
[336908648,1725239439039,-447.0,0.00022397,2]
[336908650,1725239439049,-810.0,0.00022397,2]
[336908652,1725239439058,-150.0,0.00022397,2]
[336908654,1725239439068,-930.0,0.00022397,2]
[336908656,1725239439078,-557.0,0.00022397,2]
[336908658,1725239439088,-1898.0,0.00022397,2]
[336908660,1725239439100,-552.0,0.00022397,2]
[336908662,1725239439109,-804.0,0.00022397,2]
[336908664,1725239439118,-1139.0,0.00022397,2]
[336908666,1725239439127,-3323.0,0.00022397,2]
[336908667,1725239439137,-248.0,0.00022397,2]
[336908669,1725239439147,-174.12842966,0.00022398,2]
[336908671,1725239439156,-182.49329433,0.00022398,2]
[336908673,1725239439166,-1214.37937339,0.000224,2]
[336908675,1725239439175,-1727.0,0.000224,2]
[336908677,1725239439185,-174.10875148,0.000224,2]
[336908679,1725239439194,-325.36604068,0.000224,2]
[336908681,1725239439204,-150.03,0.00022447,2]
[336908683,1725239439213,-53750.1846766,0.00022449,3]
[336908685,1725239439222,-88439.90519627,0.00022457,3]
[336908697,1725239439334,-1173.60266004,0.00022457,3]
[336908700,1725239439355,-313.999999,0.00022457,3]
[336908801,1725239440422,-4794.43682296,0.00022387,2]
[336908803,1725239440432,-83315.87714761,0.00022457,3]
[336908805,1725239440443,-14882.26136508,0.00022457,3]
[336908807,1725239440453,-26875.0923383,0.00022459,3]
[336908809,1725239440461,-150.03,0.00022459,2]
[336908811,1725239440471,-150.03,0.00022459,2]
[336908813,1725239440481,-500.0,0.00022465,2]
[336908815,1725239440490,-500.0,0.00022465,2]
[336908843,1725239440744,-500.0,0.00022465,2]
[336908845,1725239440759,-500.0,0.00022465,2]
[336908847,1725239440768,-500.0,0.00022465,2]
[336908849,1725239440777,-500.0,0.00022465,2]
[336908851,1725239440786,-500.0,0.00022465,2]
[336908853,1725239440795,-199.22017035,0.00022465,2]
[336908855,1725239440804,-245.48546744,0.00022466,2]